[Event "Early-Titled-Tuesday-Blitz-September-05-2023"]
[Site "Chess.com"]
[Date "2023.09.05"]
[Round "1"]
[White "GAusal"]
[Black "nss13"]
[Result "1-0"]
[WhiteElo "2291"]
[BlackElo "2527"]
[TimeControl "180+1"]
[EndTime "8:07:40 PDT"]
[Termination "GAusal won on time"]

1. d4 {[%clk 0:02:56.4]} 1... Nf6 {[%clk 0:02:59.8]} 2. Nf3 {[%clk 0:02:56.6]}
2... e6 {[%clk 0:03:00.2]} 3. Bf4 {[%clk 0:02:55]} 3... c5 {[%clk 0:03:00.5]} 4.
e3 {[%clk 0:02:55.3]} 4... b6 {[%clk 0:03:00.7]} 5. c3 {[%clk 0:02:55.6]} 5...
Bb7 {[%clk 0:03:01.4]} 6. Be2 {[%clk 0:02:55.6]} 6... Be7 {[%clk 0:03:02.1]} 7.
O-O {[%clk 0:02:55.3]} 7... O-O {[%clk 0:03:02.8]} 8. Nbd2 {[%clk 0:02:55.5]}
8... cxd4 {[%clk 0:03:03.3]} 9. exd4 {[%clk 0:02:55.2]} 9... d6 {[%clk 0:03:04]}
10. Re1 {[%clk 0:02:54.2]} 10... Nbd7 {[%clk 0:03:04.4]} 11. Bg3 {[%clk
0:02:54.3]} 11... Re8 {[%clk 0:03:04]} 12. Bd3 {[%clk 0:02:54.5]} 12... Bf8
{[%clk 0:03:04.4]} 13. Re2 {[%clk 0:02:53.1]} 13... Qc7 {[%clk 0:03:03.8]} 14.
Qe1 {[%clk 0:02:53.2]} 14... a6 {[%clk 0:03:00.8]} 15. Rc1 {[%clk 0:02:52]}
15... b5 {[%clk 0:02:58.1]} 16. a3 {[%clk 0:02:51.6]} 16... Bc6 {[%clk
0:02:57.4]} 17. Ne4 {[%clk 0:02:46.2]} 17... Nxe4 {[%clk 0:02:51.4]} 18. Bxe4
{[%clk 0:02:45.8]} 18... Nf6 {[%clk 0:02:50.7]} 19. Bxc6 {[%clk 0:02:45.1]}
19... Qxc6 {[%clk 0:02:51.6]} 20. Bh4 {[%clk 0:02:44.4]} 20... Nd5 {[%clk
0:02:49.3]} 21. Nd2 {[%clk 0:02:42]} 21... Rac8 {[%clk 0:02:43.9]} 22. Ne4
{[%clk 0:02:35.8]} 22... Qb6 {[%clk 0:02:27.8]} 23. Bg3 {[%clk 0:02:29]} 23...
Rc6 {[%clk 0:02:25.8]} 24. h4 {[%clk 0:02:27.9]} 24... Rec8 {[%clk 0:02:25.3]}
25. h5 {[%clk 0:02:26.4]} 25... h6 {[%clk 0:02:25.5]} 26. Qd1 {[%clk 0:02:17.6]}
26... a5 {[%clk 0:02:23.5]} 27. Qd2 {[%clk 0:02:01.8]} 27... b4 {[%clk
0:02:16.6]} 28. axb4 {[%clk 0:02:01]} 28... axb4 {[%clk 0:02:16.5]} 29. Ree1
{[%clk 0:01:48.2]} 29... bxc3 {[%clk 0:02:10.5]} 30. bxc3 {[%clk 0:01:48.1]}
30... Qa5 {[%clk 0:01:25.8]} 31. Qb2 {[%clk 0:01:33.4]} 31... Nxc3 {[%clk
0:00:59.4]} 32. Nxc3 {[%clk 0:01:24.1]} 32... Rxc3 {[%clk 0:00:59.2]} 33. Rxc3
{[%clk 0:01:23.5]} 33... Qxc3 {[%clk 0:01:00.1]} 34. Qxc3 {[%clk 0:01:15.2]}
34... Rxc3 {[%clk 0:01:01]} 35. Ra1 {[%clk 0:01:09.6]} 35... Rd3 {[%clk
0:00:59.4]} 36. Ra4 {[%clk 0:01:07]} 36... f5 {[%clk 0:00:33.7]} 37. Kf1 {[%clk
0:01:03.3]} 37... Kf7 {[%clk 0:00:17.3]} 38. Ke2 {[%clk 0:01:02.6]} 38... Rb3
{[%clk 0:00:18]} 39. Ra7+ {[%clk 0:01:01.4]} 39... Kg8 {[%clk 0:00:15.4]} 40.
Ra8 {[%clk 0:00:57]} 40... Rb6 {[%clk 0:00:15.9]} 41. Kd2 {[%clk 0:00:50.7]}
41... Kf7 {[%clk 0:00:13.9]} 42. Ra7+ {[%clk 0:00:49.6]} 42... Kg8 {[%clk
0:00:10.8]} 43. Ra8 {[%clk 0:00:48.5]} 43... Rc6 {[%clk 0:00:10.8]} 44. Kd3
{[%clk 0:00:47.8]} 44... Kf7 {[%clk 0:00:10.3]} 45. Ra7+ {[%clk 0:00:47]} 45...
Ke8 {[%clk 0:00:09.2]} 46. Ra8+ {[%clk 0:00:45.2]} 46... Ke7 {[%clk 0:00:06.4]}
47. Ra7+ {[%clk 0:00:45.2]} 47... Kd8 {[%clk 0:00:05.3]} 48. Ra8+ {[%clk
0:00:45.2]} 48... Rc8 {[%clk 0:00:06]} 49. Ra6 {[%clk 0:00:44.2]} 49... Ke7
{[%clk 0:00:03.6]} 50. Ra7+ {[%clk 0:00:44]} 50... Ke8 {[%clk 0:00:03.7]} 51.
Ra6 {[%clk 0:00:43.7]} 51... Rd8 {[%clk 0:00:04.2]} 52. Ra7 {[%clk 0:00:42]}
52... Rd7 {[%clk 0:00:04.4]} 53. Ra8+ {[%clk 0:00:41.7]} 53... Kf7 {[%clk
0:00:04.9]} 54. f3 {[%clk 0:00:40]} 54... Be7 {[%clk 0:00:05.3]} 55. Bf2 {[%clk
0:00:39.9]} 55... Bf6 {[%clk 0:00:06]} 56. Be3 {[%clk 0:00:39.3]} 1-0

[Event "Early-Titled-Tuesday-Blitz-September-05-2023"]
[Site "Chess.com"]
[Date "2023.09.05"]
[Round "1"]
[White "Tugrik1969"]
[Black "MatthewG-p4p"]
[Result "0-1"]
[WhiteElo "2479"]
[BlackElo "2870"]
[TimeControl "180+1"]
[EndTime "8:07:44 PDT"]
[Termination "MatthewG-p4p won by resignation"]

1. e4 {[%clk 0:03:00.9]} 1... e6 {[%clk 0:02:52.1]} 2. d3 {[%clk 0:03:00.7]}
2... d5 {[%clk 0:02:52.1]} 3. Nd2 {[%clk 0:03:01.1]} 3... Nf6 {[%clk 0:02:52.1]}
4. Ngf3 {[%clk 0:03:01.3]} 4... c5 {[%clk 0:02:52.9]} 5. g3 {[%clk 0:03:01.3]}
5... Nc6 {[%clk 0:02:53.6]} 6. Bg2 {[%clk 0:03:01.6]} 6... Be7 {[%clk
0:02:54.4]} 7. O-O {[%clk 0:03:02.2]} 7... O-O {[%clk 0:02:55.1]} 8. Re1 {[%clk
0:03:02.9]} 8... b5 {[%clk 0:02:55.6]} 9. e5 {[%clk 0:02:55.4]} 9... Nd7 {[%clk
0:02:54.7]} 10. Nf1 {[%clk 0:02:56.3]} 10... Qc7 {[%clk 0:02:54.5]} 11. Bf4
{[%clk 0:02:55.3]} 11... Bb7 {[%clk 0:02:55.4]} 12. h4 {[%clk 0:02:54.6]} 12...
Rfc8 {[%clk 0:02:54.9]} 13. h5 {[%clk 0:02:52.3]} 13... h6 {[%clk 0:02:55]} 14.
N1h2 {[%clk 0:02:45.6]} 14... Qd8 {[%clk 0:02:51.3]} 15. Ng4 {[%clk 0:02:32.4]}
15... Bf8 {[%clk 0:02:48.5]} 16. Qd2 {[%clk 0:02:28.2]} 16... a5 {[%clk
0:02:46.4]} 17. c4 {[%clk 0:02:24.9]} 17... bxc4 {[%clk 0:02:36.3]} 18. dxc4
{[%clk 0:02:25.8]} 18... d4 {[%clk 0:02:36.8]} 19. Re2 {[%clk 0:01:47.3]} 19...
a4 {[%clk 0:02:26.5]} 20. Ne1 {[%clk 0:01:43.7]} 20... Nb6 {[%clk 0:01:59.3]}
21. Rc1 {[%clk 0:01:33.7]} 21... Na5 {[%clk 0:01:54.7]} 22. Bxb7 {[%clk
0:01:29.1]} 22... Nxb7 {[%clk 0:01:55.6]} 23. Re4 {[%clk 0:01:03]} 23... Na5
{[%clk 0:01:52.4]} 24. Qd3 {[%clk 0:00:35.6]} 24... Nc6 {[%clk 0:01:39.3]} 25.
Bxh6 {[%clk 0:00:31.7]} 25... Nb4 {[%clk 0:01:30.7]} 26. Qb1 {[%clk 0:00:26.5]}
26... d3 {[%clk 0:01:22.5]} 27. Bd2 {[%clk 0:00:23.8]} 27... Be7 {[%clk
0:01:01.5]} 28. Bxb4 {[%clk 0:00:23.1]} 28... cxb4 {[%clk 0:01:01.4]} 29. Qxd3
{[%clk 0:00:23.8]} 29... Qxd3 {[%clk 0:00:53.7]} 30. Nxd3 {[%clk 0:00:24.7]}
30... Rd8 {[%clk 0:00:54.6]} 31. Rd1 {[%clk 0:00:05.1]} 31... Rac8 {[%clk
0:00:53.4]} 32. b3 {[%clk 0:00:04.9]} 32... Rd7 {[%clk 0:00:42.3]} 33. f4 {[%clk
0:00:05.3]} 33... Rcd8 {[%clk 0:00:42.2]} 34. Ngf2 {[%clk 0:00:06.2]} 34... a3
{[%clk 0:00:38]} 35. Kg2 {[%clk 0:00:06.1]} 35... Bc5 {[%clk 0:00:38.2]} 36.
Nxc5 {[%clk 0:00:05.7]} 36... Rxd1 {[%clk 0:00:39.1]} 37. Nxd1 {[%clk
0:00:06.4]} 37... Rxd1 {[%clk 0:00:39.4]} 38. Re2 {[%clk 0:00:06.7]} 38... Rb1
{[%clk 0:00:31.5]} 39. Kf3 {[%clk 0:00:06.9]} 39... Rb2 {[%clk 0:00:28.8]} 40.
Nd3 {[%clk 0:00:07.4]} 40... Nxc4 {[%clk 0:00:18.2]} 41. Nxb2 {[%clk 0:00:04.7]}
41... axb2 {[%clk 0:00:18.1]} 42. bxc4 {[%clk 0:00:03.6]} 42... b1=Q {[%clk
0:00:17.8]} 43. Ke3 {[%clk 0:00:03.4]} 43... Qc1+ {[%clk 0:00:16.5]} 44. Kd3
{[%clk 0:00:03.5]} 44... Qd1+ {[%clk 0:00:16.2]} 45. Rd2 {[%clk 0:00:03.6]}
45... Qf3+ {[%clk 0:00:16.6]} 46. Kd4 {[%clk 0:00:04.1]} 46... Qc3+ {[%clk
0:00:16.4]} 0-1

[Event "Early-Titled-Tuesday-Blitz-September-05-2023"]
[Site "Chess.com"]
[Date "2023.09.05"]
[Round "1"]
[White "sokidze"]
[Black "Chessdude1987"]
[Result "1-0"]
[WhiteElo "2749"]
[BlackElo "2420"]
[TimeControl "180+1"]
[EndTime "8:07:44 PDT"]
[Termination "sokidze won on time"]

1. d4 {[%clk 0:03:00.9]} 1... e6 {[%clk 0:02:59.1]} 2. c4 {[%clk 0:03:01.1]}
2... f5 {[%clk 0:02:59.1]} 3. Nf3 {[%clk 0:02:57.2]} 3... Nf6 {[%clk 0:02:59.1]}
4. g3 {[%clk 0:02:58]} 4... Be7 {[%clk 0:02:56.9]} 5. Bg2 {[%clk 0:02:58.2]}
5... O-O {[%clk 0:02:56.6]} 6. O-O {[%clk 0:02:58.6]} 6... d6 {[%clk 0:02:56.7]}
7. Qc2 {[%clk 0:02:54.3]} 7... Ne4 {[%clk 0:02:52.9]} 8. Nc3 {[%clk 0:02:53.1]}
8... Nxc3 {[%clk 0:02:52.3]} 9. bxc3 {[%clk 0:02:54]} 9... Nc6 {[%clk
0:02:42.2]} 10. d5 {[%clk 0:02:03.2]} 10... Na5 {[%clk 0:02:41.6]} 11. dxe6
{[%clk 0:02:02.4]} 11... Bxe6 {[%clk 0:02:29]} 12. Nd4 {[%clk 0:02:01.9]} 12...
Bxc4 {[%clk 0:02:28.6]} 13. Nxf5 {[%clk 0:01:59.5]} 13... Bf6 {[%clk 0:02:18.8]}
14. Ne3 {[%clk 0:01:53.7]} 14... Be6 {[%clk 0:02:01.3]} 15. Rb1 {[%clk 0:01:52]}
15... c6 {[%clk 0:02:00.5]} 16. Rd1 {[%clk 0:01:47.1]} 16... d5 {[%clk
0:01:55.9]} 17. Ba3 {[%clk 0:01:31.9]} 17... Re8 {[%clk 0:01:54.1]} 18. Bb4
{[%clk 0:01:19]} 18... Qc7 {[%clk 0:01:52.9]} 19. Nf5 {[%clk 0:01:07.5]} 19...
Nc4 {[%clk 0:01:46.5]} 20. Nd4 {[%clk 0:00:47.4]} 20... Bf7 {[%clk 0:01:37.2]}
21. e4 {[%clk 0:00:32.2]} 21... a5 {[%clk 0:01:35.5]} 22. Bc5 {[%clk 0:00:27.4]}
22... b6 {[%clk 0:01:34.2]} 23. exd5 {[%clk 0:00:20.8]} 23... cxd5 {[%clk
0:01:20]} 24. Bxb6 {[%clk 0:00:15.1]} 24... Nxb6 {[%clk 0:01:19.3]} 25. Nb5
{[%clk 0:00:15.5]} 25... Qc5 {[%clk 0:01:13.1]} 26. Bf1 {[%clk 0:00:12.1]} 26...
Nc4 {[%clk 0:01:03.9]} 27. Bd3 {[%clk 0:00:11.2]} 27... g6 {[%clk 0:00:50.5]}
28. Rb3 {[%clk 0:00:10.6]} 28... a4 {[%clk 0:00:48.3]} 29. Rb4 {[%clk
0:00:10.9]} 29... Rac8 {[%clk 0:00:42.3]} 30. Bxc4 {[%clk 0:00:11.1]} 30... dxc4
{[%clk 0:00:39.6]} 31. Nd6 {[%clk 0:00:11.6]} 31... Rcd8 {[%clk 0:00:26.8]} 32.
Nxe8 {[%clk 0:00:11.9]} 32... Rxe8 {[%clk 0:00:24.9]} 33. Qd2 {[%clk 0:00:10.5]}
33... g5 {[%clk 0:00:16.4]} 34. Rb7 {[%clk 0:00:09.6]} 34... Bg6 {[%clk
0:00:15.2]} 35. Rd7 {[%clk 0:00:06.7]} 35... Qe5 {[%clk 0:00:05.9]} 36. Rd5
{[%clk 0:00:05.2]} 36... Qe2 {[%clk 0:00:05.8]} 37. Qxe2 {[%clk 0:00:02.2]}
37... Rxe2 {[%clk 0:00:05.5]} 38. Rd6 {[%clk 0:00:02.4]} 38... Kg7 {[%clk
0:00:04.4]} 39. Rd7+ {[%clk 0:00:02.3]} 39... Kh6 {[%clk 0:00:04.5]} 40. R7d6
{[%clk 0:00:02]} 40... Bxc3 {[%clk 0:00:02.7]} 41. h3 {[%clk 0:00:02.5]} 41...
Rxa2 {[%clk 0:00:01.9]} 42. Rc1 {[%clk 0:00:03.1]} 42... Rc2 {[%clk 0:00:02]}
43. Rxc2 {[%clk 0:00:02.8]} 43... a3 {[%clk 0:00:01.4]} 44. Rxc3 {[%clk
0:00:02.7]} 44... a2 {[%clk 0:00:01.6]} 45. Ra3 {[%clk 0:00:03.4]} 1-0

[Event "Early-Titled-Tuesday-Blitz-September-05-2023"]
[Site "Chess.com"]
[Date "2023.09.05"]
[Round "1"]
[White "GaiozNigalidze"]
[Black "Gauravthegm"]
[Result "1/2-1/2"]
[WhiteElo "2765"]
[BlackElo "2434"]
[TimeControl "180+1"]
[EndTime "8:07:46 PDT"]
[Termination "Game drawn by repetition"]

1. d4 {[%clk 0:03:00.9]} 1... Nf6 {[%clk 0:02:59.8]} 2. c4 {[%clk 0:03:01.2]}
2... g6 {[%clk 0:02:58]} 3. Nf3 {[%clk 0:03:01]} 3... Bg7 {[%clk 0:02:58.3]} 4.
Nc3 {[%clk 0:03:01.1]} 4... O-O {[%clk 0:02:58.8]} 5. e4 {[%clk 0:03:01.3]} 5...
d6 {[%clk 0:02:59.3]} 6. h3 {[%clk 0:02:59.6]} 6... e5 {[%clk 0:02:58.2]} 7. d5
{[%clk 0:03:00]} 7... a5 {[%clk 0:02:56.7]} 8. Bd3 {[%clk 0:03:00.1]} 8... Na6
{[%clk 0:02:56.6]} 9. a3 {[%clk 0:02:53.5]} 9... Nc5 {[%clk 0:02:55.9]} 10. Bc2
{[%clk 0:02:54]} 10... Ne8 {[%clk 0:02:51.4]} 11. Rb1 {[%clk 0:02:46.7]} 11...
f5 {[%clk 0:02:49.7]} 12. Bg5 {[%clk 0:02:42.2]} 12... Bf6 {[%clk 0:02:45.3]}
13. Bh6 {[%clk 0:02:31.9]} 13... Bg7 {[%clk 0:02:45.2]} 14. Bxg7 {[%clk
0:02:31.8]} 14... Nxg7 {[%clk 0:02:38.2]} 15. exf5 {[%clk 0:02:17.4]} 15... Bxf5
{[%clk 0:02:32.1]} 16. b4 {[%clk 0:02:02.6]} 16... axb4 {[%clk 0:02:30.5]} 17.
axb4 {[%clk 0:02:03.5]} 17... Nd7 {[%clk 0:02:26.5]} 18. Bxf5 {[%clk 0:01:37.2]}
18... Nxf5 {[%clk 0:02:20.8]} 19. O-O {[%clk 0:01:37]} 19... b6 {[%clk
0:02:18.8]} 20. Ne4 {[%clk 0:01:33.9]} 20... h6 {[%clk 0:02:15.5]} 21. Qd3
{[%clk 0:01:27.6]} 21... Nf6 {[%clk 0:02:11.6]} 22. Ra1 {[%clk 0:01:24.2]} 22...
Qe7 {[%clk 0:02:07.9]} 23. Rfc1 {[%clk 0:01:19.3]} 23... Kh7 {[%clk 0:02:05.1]}
24. Rxa8 {[%clk 0:01:11.1]} 24... Rxa8 {[%clk 0:02:04.5]} 25. c5 {[%clk
0:01:11.8]} 25... bxc5 {[%clk 0:02:04]} 26. bxc5 {[%clk 0:01:10.7]} 26... Nxe4
{[%clk 0:02:02]} 27. Qxe4 {[%clk 0:01:08.8]} 27... Qd7 {[%clk 0:01:43.2]} 28. g4
{[%clk 0:01:00.6]} 28... Ne7 {[%clk 0:01:38]} 29. Kg2 {[%clk 0:00:51.4]} 29...
Ra7 {[%clk 0:01:23.7]} 30. Rc4 {[%clk 0:00:47.3]} 30... Qe8 {[%clk 0:01:17.4]}
31. cxd6 {[%clk 0:00:42.2]} 31... cxd6 {[%clk 0:01:17.3]} 32. Nxe5 {[%clk
0:00:33.3]} 32... dxe5 {[%clk 0:01:12.7]} 33. d6 {[%clk 0:00:31.9]} 33... Ng8
{[%clk 0:01:01]} 34. Rc7+ {[%clk 0:00:24.5]} 34... Rxc7 {[%clk 0:01:00.9]} 35.
dxc7 {[%clk 0:00:25.4]} 35... Ne7 {[%clk 0:00:43.4]} 36. Qxe5 {[%clk 0:00:23.6]}
36... Qc6+ {[%clk 0:00:42.9]} 37. Kg3 {[%clk 0:00:22.1]} 37... Nc8 {[%clk
0:00:29.7]} 38. h4 {[%clk 0:00:20.2]} 38... Qd6 {[%clk 0:00:29.1]} 39. Qxd6
{[%clk 0:00:20.6]} 39... Nxd6 {[%clk 0:00:29.4]} 40. Kf4 {[%clk 0:00:21.5]}
40... Kg7 {[%clk 0:00:26.1]} 41. Ke5 {[%clk 0:00:21.9]} 41... Nc8 {[%clk
0:00:26.3]} 42. Ke6 {[%clk 0:00:22.4]} 42... Nb6 {[%clk 0:00:20.7]} 43. f4
{[%clk 0:00:22.2]} 43... Nc8 {[%clk 0:00:20.3]} 44. f5 {[%clk 0:00:22.4]} 44...
gxf5 {[%clk 0:00:20.3]} 45. gxf5 {[%clk 0:00:23.3]} 45... Nb6 {[%clk 0:00:20.5]}
46. h5 {[%clk 0:00:21.6]} 46... Nc8 {[%clk 0:00:19.5]} 47. Kd7 {[%clk
0:00:21.6]} 47... Nb6+ {[%clk 0:00:19.7]} 48. Ke7 {[%clk 0:00:22.1]} 48... Nc8+
{[%clk 0:00:19.7]} 49. Ke6 {[%clk 0:00:22.7]} 49... Nb6 {[%clk 0:00:20.2]} 50.
f6+ {[%clk 0:00:22]} 50... Kf8 {[%clk 0:00:20.2]} 51. Kd6 {[%clk 0:00:19.8]}
51... Kf7 {[%clk 0:00:19.8]} 52. Kc6 {[%clk 0:00:19.4]} 52... Nc8 {[%clk
0:00:20.1]} 53. Kb7 {[%clk 0:00:19.2]} 53... Nd6+ {[%clk 0:00:20.3]} 54. Kc6
{[%clk 0:00:19.8]} 54... Nc8 {[%clk 0:00:20.5]} 55. Kd7 {[%clk 0:00:20.3]} 55...
Nb6+ {[%clk 0:00:20.8]} 56. Kc6 {[%clk 0:00:20.8]} 56... Nc8 {[%clk 0:00:20.8]}
1/2-1/2

[Event "Early-Titled-Tuesday-Blitz-September-05-2023"]
[Site "Chess.com"]
[Date "2023.09.05"]
[Round "1"]
[White "UmarovSabir"]
[Black "Yeremyan_ChessMate"]
[Result "0-1"]
[WhiteElo "2317"]
[BlackElo "2636"]
[TimeControl "180+1"]
[EndTime "8:07:47 PDT"]
[Termination "Yeremyan_ChessMate won on time"]

1. e4 {[%clk 0:03:00.1]} 1... Nf6 {[%clk 0:02:58]} 2. e5 {[%clk 0:02:58.3]} 2...
Nd5 {[%clk 0:02:58.2]} 3. Nf3 {[%clk 0:02:58.9]} 3... d6 {[%clk 0:02:58.5]} 4.
d4 {[%clk 0:02:59.4]} 4... Bg4 {[%clk 0:02:58.7]} 5. Be2 {[%clk 0:02:59]} 5...
c6 {[%clk 0:02:59.3]} 6. O-O {[%clk 0:02:57.9]} 6... Bxf3 {[%clk 0:02:59.6]} 7.
Bxf3 {[%clk 0:02:57.7]} 7... dxe5 {[%clk 0:03:00.5]} 8. dxe5 {[%clk 0:02:57.5]}
8... e6 {[%clk 0:03:01.1]} 9. c4 {[%clk 0:02:56.5]} 9... Ne7 {[%clk 0:03:01.4]}
10. Qxd8+ {[%clk 0:02:56.6]} 10... Kxd8 {[%clk 0:03:02.3]} 11. Rd1+ {[%clk
0:02:54.7]} 11... Nd7 {[%clk 0:03:02.7]} 12. Nc3 {[%clk 0:02:38.1]} 12... Kc8
{[%clk 0:03:00.4]} 13. Ne4 {[%clk 0:02:30.8]} 13... Ng6 {[%clk 0:02:52.4]} 14.
Nd6+ {[%clk 0:02:29.3]} 14... Bxd6 {[%clk 0:02:53]} 15. exd6 {[%clk 0:02:30.2]}
15... Nde5 {[%clk 0:02:47]} 16. Be2 {[%clk 0:02:30.2]} 16... Nd7 {[%clk
0:02:43.2]} 17. Be3 {[%clk 0:02:26.1]} 17... Nf6 {[%clk 0:02:37.6]} 18. b4
{[%clk 0:02:23.9]} 18... Kd7 {[%clk 0:02:37.4]} 19. a3 {[%clk 0:02:01]} 19...
Rhd8 {[%clk 0:02:35.7]} 20. Bg5 {[%clk 0:01:52.5]} 20... h6 {[%clk 0:02:32.9]}
21. Bxf6 {[%clk 0:01:52.3]} 21... gxf6 {[%clk 0:02:33.8]} 22. c5 {[%clk
0:01:52.9]} 22... Nf4 {[%clk 0:02:33.5]} 23. Bf1 {[%clk 0:01:42.4]} 23... f5
{[%clk 0:02:33.5]} 24. g3 {[%clk 0:01:41.5]} 24... Nd5 {[%clk 0:02:33.9]} 25.
Bg2 {[%clk 0:01:39.4]} 25... Rac8 {[%clk 0:02:34.4]} 26. f4 {[%clk 0:01:37.2]}
26... b6 {[%clk 0:02:33.3]} 27. Kf2 {[%clk 0:01:36.8]} 27... Rb8 {[%clk
0:02:32.1]} 28. Rac1 {[%clk 0:01:31.5]} 28... bxc5 {[%clk 0:02:28.1]} 29. bxc5
{[%clk 0:01:32.4]} 29... Rb2+ {[%clk 0:02:27.8]} 30. Kf3 {[%clk 0:01:13.3]}
30... Rdb8 {[%clk 0:02:27.4]} 31. Bf1 {[%clk 0:01:09]} 31... Rxh2 {[%clk
0:02:21.8]} 32. Rb1 {[%clk 0:01:06.3]} 32... Rhb2 {[%clk 0:02:21.3]} 33. Rxb2
{[%clk 0:01:05.6]} 33... Rxb2 {[%clk 0:02:22.2]} 34. Bc4 {[%clk 0:01:04.7]}
34... Rc2 {[%clk 0:02:20.7]} 35. Bxd5 {[%clk 0:00:58]} 35... Rc3+ {[%clk
0:02:04.6]} 36. Kf2 {[%clk 0:00:56.8]} 36... exd5 {[%clk 0:01:57.2]} 37. Re1
{[%clk 0:00:51.5]} 37... Rxc5 {[%clk 0:01:57.8]} 38. Re7+ {[%clk 0:00:51.2]}
38... Kxd6 {[%clk 0:01:58.6]} 39. Rxa7 {[%clk 0:00:51.3]} 39... Ke6 {[%clk
0:01:59.3]} 40. a4 {[%clk 0:00:49.9]} 40... Rc2+ {[%clk 0:01:59.3]} 41. Kf3
{[%clk 0:00:49.7]} 41... Rc3+ {[%clk 0:01:59.4]} 42. Kf2 {[%clk 0:00:49.7]}
42... d4 {[%clk 0:02:00.2]} 43. a5 {[%clk 0:00:49.7]} 43... Kd5 {[%clk 0:02:00]}
44. a6 {[%clk 0:00:49.5]} 44... Kc4 {[%clk 0:02:00.3]} 45. Rxf7 {[%clk 0:00:49]}
45... Ra3 {[%clk 0:02:00.3]} 46. a7 {[%clk 0:00:49]} 46... c5 {[%clk 0:01:59.5]}
47. Ke2 {[%clk 0:00:46.9]} 47... Kc3 {[%clk 0:01:58]} 48. Rxf5 {[%clk
0:00:45.8]} 48... c4 {[%clk 0:01:58.5]} 49. Rf7 {[%clk 0:00:45.9]} 49... Ra2+
{[%clk 0:01:57.4]} 50. Kf3 {[%clk 0:00:45.8]} 50... d3 {[%clk 0:01:58.1]} 51.
Rd7 {[%clk 0:00:45.6]} 51... Kc2 {[%clk 0:01:57.7]} 52. f5 {[%clk 0:00:45]}
52... c3 {[%clk 0:01:58]} 53. f6 {[%clk 0:00:45]} 53... d2 {[%clk 0:01:57.6]}
54. f7 {[%clk 0:00:45.1]} 54... Rxa7 {[%clk 0:01:52.1]} 55. f8=Q {[%clk
0:00:35.7]} 55... Rxd7 {[%clk 0:01:51.3]} 56. Qf5+ {[%clk 0:00:36.2]} 56... Kc1
{[%clk 0:01:50.7]} 57. Qf4 {[%clk 0:00:21]} 57... Rf7 {[%clk 0:01:21.1]} 58.
Qxf7 {[%clk 0:00:20.7]} 58... d1=Q+ {[%clk 0:01:21.7]} 59. Kg2 {[%clk
0:00:20.5]} 59... Qd2+ {[%clk 0:01:18.1]} 60. Kh3 {[%clk 0:00:20]} 60... c2
{[%clk 0:01:18.9]} 61. Qf6 {[%clk 0:00:17.9]} 61... Qe3 {[%clk 0:01:01.6]} 62.
Qa1+ {[%clk 0:00:17.6]} 62... Kd2 {[%clk 0:01:01.8]} 63. Qa5+ {[%clk 0:00:17.5]}
63... Ke2 {[%clk 0:00:58.7]} 64. Qc7 {[%clk 0:00:16.8]} 64... c1=Q {[%clk
0:00:57.7]} 0-1

[Event "Early-Titled-Tuesday-Blitz-September-05-2023"]
[Site "Chess.com"]
[Date "2023.09.05"]
[Round "1"]
[White "Smiechu"]
[Black "chito89"]
[Result "0-1"]
[WhiteElo "2441"]
[BlackElo "2802"]
[TimeControl "180+1"]
[EndTime "8:07:48 PDT"]
[Termination "chito89 won on time"]

1. e4 {[%clk 0:03:00.9]} 1... e5 {[%clk 0:02:54]} 2. Nf3 {[%clk 0:02:58.9]} 2...
Nc6 {[%clk 0:02:54.5]} 3. d4 {[%clk 0:02:59.4]} 3... exd4 {[%clk 0:02:54.1]} 4.
Nxd4 {[%clk 0:03:00.1]} 4... Bc5 {[%clk 0:02:52]} 5. Nb3 {[%clk 0:02:59.7]} 5...
Bb6 {[%clk 0:02:52.3]} 6. Nc3 {[%clk 0:03:00.3]} 6... Nf6 {[%clk 0:02:48.4]} 7.
Qe2 {[%clk 0:03:00]} 7... a5 {[%clk 0:02:46.4]} 8. Be3 {[%clk 0:02:57.3]} 8...
a4 {[%clk 0:02:26.8]} 9. Nd2 {[%clk 0:02:49.4]} 9... a3 {[%clk 0:02:13.4]} 10.
b3 {[%clk 0:02:47.9]} 10... Ba5 {[%clk 0:01:42.9]} 11. Nd5 {[%clk 0:01:51.5]}
11... Nxe4 {[%clk 0:01:05.4]} 12. b4 {[%clk 0:01:18.6]} 12... Nxb4 {[%clk
0:01:02.3]} 13. Qc4 {[%clk 0:01:17.9]} 13... Nxd5 {[%clk 0:00:53.1]} 14. Qxe4+
{[%clk 0:01:17.7]} 14... Ne7 {[%clk 0:00:53.1]} 15. Bd3 {[%clk 0:01:17.8]} 15...
d5 {[%clk 0:00:52]} 16. Qh4 {[%clk 0:01:09.7]} 16... Bf5 {[%clk 0:00:47.9]} 17.
O-O {[%clk 0:01:00.4]} 17... Bxd3 {[%clk 0:00:43.7]} 18. cxd3 {[%clk 0:01:00.4]}
18... Nf5 {[%clk 0:00:44.4]} 19. Qf4 {[%clk 0:00:44.4]} 19... Nxe3 {[%clk
0:00:35.8]} 20. fxe3 {[%clk 0:00:44.5]} 20... O-O {[%clk 0:00:35]} 21. Nf3
{[%clk 0:00:44.8]} 21... Qe7 {[%clk 0:00:30.8]} 22. Rab1 {[%clk 0:00:43.1]}
22... c5 {[%clk 0:00:23.2]} 23. e4 {[%clk 0:00:37.1]} 23... dxe4 {[%clk
0:00:21.2]} 24. dxe4 {[%clk 0:00:37.5]} 24... Rad8 {[%clk 0:00:20.9]} 25. Nh4
{[%clk 0:00:33.3]} 25... g6 {[%clk 0:00:20.2]} 26. Rb3 {[%clk 0:00:28.9]} 26...
Rd4 {[%clk 0:00:18.1]} 27. Re3 {[%clk 0:00:23.3]} 27... Bc7 {[%clk 0:00:15.7]}
28. Qg4 {[%clk 0:00:22.6]} 28... Kh8 {[%clk 0:00:16.2]} 29. Rfe1 {[%clk
0:00:20.3]} 29... f6 {[%clk 0:00:15.8]} 30. Rh3 {[%clk 0:00:19.8]} 30... Qg7
{[%clk 0:00:05.4]} 31. Nxg6+ {[%clk 0:00:18.3]} 31... Kg8 {[%clk 0:00:06]} 32.
Qe6+ {[%clk 0:00:18.3]} 32... Qf7 {[%clk 0:00:04.4]} 33. Ne7+ {[%clk 0:00:14.6]}
33... Kh8 {[%clk 0:00:03.3]} 34. Qxf7 {[%clk 0:00:02.6]} 34... Rxf7 {[%clk
0:00:04.2]} 35. Nd5 {[%clk 0:00:03]} 35... Be5 {[%clk 0:00:03.8]} 36. Rxa3
{[%clk 0:00:02.6]} 36... b5 {[%clk 0:00:02.8]} 37. Rb3 {[%clk 0:00:02.9]} 37...
b4 {[%clk 0:00:02.5]} 38. a3 {[%clk 0:00:03.4]} 38... bxa3 {[%clk 0:00:02]} 39.
Rxa3 {[%clk 0:00:03.9]} 39... h5 {[%clk 0:00:02.4]} 40. Rc3 {[%clk 0:00:04]}
40... Rd2 {[%clk 0:00:02.7]} 41. Rxc5 {[%clk 0:00:03.6]} 41... Bd4+ {[%clk
0:00:03.1]} 0-1